[Event "Titled Tuesday Blitz August 17 2021"]
[White "Leve, Nitai"]
[Black "Ibarra Jerez, Jose Carlos"]
[WhiteFideId "2006898"]
[BlackFideId "2226332"]
[WhiteElo "2144"]
[BlackElo "2602"]
[Result "0-1"]
[Round "01"]
[TimeControl "180+1"]
[Date "2021.08.17"]
[WhiteClock "0:00:01"]
[BlackClock "0:00:07"]

1. e4 {[%clk 0:03:00]}  c5 {[%clk 0:02:56]} 2. Nf3 {[%clk 0:02:59]}  e6 {[%clk 0:02:53]} 3. d4 {[%clk 0:02:59]}  cxd4 {[%clk 0:02:54]} 4. Nxd4 {[%clk 0:02:58]}  Bc5 {[%clk 0:02:53]} 5. Nb3 {[%clk 0:02:57]}  Bb6 {[%clk 0:02:52]} 6. Nc3 {[%clk 0:02:54]}  Ne7 {[%clk 0:02:52]} 7. Bd3 {[%clk 0:02:52]}  O-O {[%clk 0:02:50]} 8. Bg5 {[%clk 0:02:49]}  f6 {[%clk 0:02:40]} 9. Bh4 {[%clk 0:02:07]}  Nbc6 {[%clk 0:02:38]} 10. Qh5 {[%clk 0:01:57]}  Ng6 {[%clk 0:02:24]} 11. Bg3 {[%clk 0:01:52]}  Nce5 {[%clk 0:02:23]} 12. O-O-O {[%clk 0:01:40]}  a6 {[%clk 0:02:16]} 13. Be2 {[%clk 0:01:38]}  Qe7 {[%clk 0:02:05]} 14. Kb1 {[%clk 0:01:31]}  f5 {[%clk 0:02:00]} 15. f4 {[%clk 0:01:13]}  Nc6 {[%clk 0:01:57]} 16. Bc4 {[%clk 0:01:03]}  fxe4 {[%clk 0:01:46]} 17. Nxe4 {[%clk 0:01:02]}  Nxf4 {[%clk 0:01:33]} 18. Bxf4 {[%clk 0:00:42]}  Rxf4 {[%clk 0:01:34]} 19. Ng5 {[%clk 0:00:36]}  h6 {[%clk 0:01:29]} 20. h4 {[%clk 0:00:13]}  Rxc4 {[%clk 0:01:18]} 21. Qg6 {[%clk 0:00:13]}  Qf6 {[%clk 0:00:54]} 22. Qh7+ {[%clk 0:00:11]}  Kf8 {[%clk 0:00:54]} 23. Ne4 {[%clk 0:00:03]}  Rxe4 {[%clk 0:00:46]} 24. Qxe4 {[%clk 0:00:04]}  d5 {[%clk 0:00:42]} 25. Qh7 {[%clk 0:00:04]}  Ne7 {[%clk 0:00:14]} 26. Rhf1 {[%clk 0:00:05]}  Nf5 {[%clk 0:00:15]} 27. g4 {[%clk 0:00:05]}  Kf7 {[%clk 0:00:11]} 28. gxf5 {[%clk 0:00:05]}  exf5 {[%clk 0:00:12]} 29. Qh8 {[%clk 0:00:06]}  g6 {[%clk 0:00:06]} 30. Qxf6+ {[%clk 0:00:05]}  Kxf6 {[%clk 0:00:06]} 31. Rxd5 {[%clk 0:00:02]}  Be6 {[%clk 0:00:07]} 32. Rd6 {[%clk 0:00:01]}  Bc7 {[%clk 0:00:07]} 0-1


[Site "https://www.chess.com"]

[Event "Titled Tuesday Blitz August 17 2021"]
[White "Ljukin, Sergei"]
[Black "Nakamura, Hikaru"]
[WhiteFideId "14102200"]
[BlackFideId "2016192"]
[WhiteElo "2309"]
[BlackElo "2900"]
[Result "0-1"]
[Round "01"]
[TimeControl "180+1"]
[Date "2021.08.17"]
[WhiteClock "0:00:02"]
[BlackClock "0:00:18"]

1. e4 {[%clk 0:02:51]}  g6 {[%clk 0:02:59]} 2. d4 {[%clk 0:02:50]}  Bg7 {[%clk 0:03:00]} 3. Nc3 {[%clk 0:02:49]}  a6 {[%clk 0:03:00]} 4. f4 {[%clk 0:02:48]}  c6 {[%clk 0:03:00]} 5. Nf3 {[%clk 0:02:48]}  d5 {[%clk 0:03:00]} 6. e5 {[%clk 0:02:48]}  Bg4 {[%clk 0:03:00]} 7. h3 {[%clk 0:02:45]}  Bxf3 {[%clk 0:03:00]} 8. Qxf3 {[%clk 0:02:46]}  e6 {[%clk 0:03:01]} 9. Be3 {[%clk 0:02:45]}  h5 {[%clk 0:03:01]} 10. O-O-O {[%clk 0:02:43]}  h4 {[%clk 0:03:01]} 11. Ne2 {[%clk 0:02:38]}  Nd7 {[%clk 0:02:47]} 12. g4 {[%clk 0:02:37]}  hxg3 {[%clk 0:02:46]} 13. Nxg3 {[%clk 0:02:37]}  Rh4 {[%clk 0:02:46]} 14. c3 {[%clk 0:02:29]}  Qc7 {[%clk 0:02:42]} 15. Qf2 {[%clk 0:02:26]}  Qd8 {[%clk 0:02:33]} 16. Bd3 {[%clk 0:02:25]}  Nh6 {[%clk 0:02:24]} 17. Rdg1 {[%clk 0:02:17]}  Qa5 {[%clk 0:02:00]} 18. Kb1 {[%clk 0:02:16]}  O-O-O {[%clk 0:01:58]} 19. f5 {[%clk 0:02:11]}  exf5 {[%clk 0:01:53]} 20. Nxf5 {[%clk 0:02:10]}  Nxf5 {[%clk 0:01:53]} 21. Bxf5 {[%clk 0:02:09]}  Rhh8 {[%clk 0:01:53]} 22. Bg4 {[%clk 0:02:08]}  Rdf8 {[%clk 0:01:50]} 23. Bg5 {[%clk 0:01:59]}  Qb5 {[%clk 0:01:38]} 24. Be2 {[%clk 0:01:53]}  Qb6 {[%clk 0:01:36]} 25. Be7 {[%clk 0:01:52]}  Bxe5 {[%clk 0:01:32]} 26. Bxf8 {[%clk 0:01:48]}  Rxf8 {[%clk 0:01:33]} 27. Bg4 {[%clk 0:01:46]}  Bg7 {[%clk 0:01:27]} 28. Bxd7+ {[%clk 0:01:31]}  Kxd7 {[%clk 0:01:28]} 29. Re1 {[%clk 0:01:30]}  Qd8 {[%clk 0:01:24]} 30. Re2 {[%clk 0:01:27]}  Qf6 {[%clk 0:01:23]} 31. Qg3 {[%clk 0:01:21]}  Qd6 {[%clk 0:01:18]} 32. Qf3 {[%clk 0:01:12]}  Bf6 {[%clk 0:01:14]} 33. Rhe1 {[%clk 0:01:06]}  Bd8 {[%clk 0:01:12]} 34. Qg4+ {[%clk 0:00:57]}  Kc7 {[%clk 0:01:11]} 35. Re8 {[%clk 0:00:52]}  Rxe8 {[%clk 0:01:09]} 36. Rxe8 {[%clk 0:00:52]}  Qf6 {[%clk 0:01:10]} 37. Qe2 {[%clk 0:00:38]}  Qf5+ {[%clk 0:01:07]} 38. Ka1 {[%clk 0:00:32]}  Qxh3 {[%clk 0:01:06]} 39. a3 {[%clk 0:00:31]}  Kd7 {[%clk 0:01:05]} 40. Rf8 {[%clk 0:00:26]}  Qe6 {[%clk 0:01:03]} 41. Qh2 {[%clk 0:00:25]}  Qe7 {[%clk 0:00:57]} 42. Rg8 {[%clk 0:00:17]}  Bc7 {[%clk 0:00:51]} 43. Qh3+ {[%clk 0:00:16]}  Qe6 {[%clk 0:00:52]} 44. Qh7 {[%clk 0:00:16]}  Bd6 {[%clk 0:00:48]} 45. Qh8 {[%clk 0:00:14]}  Kc7 {[%clk 0:00:38]} 46. Ra8 {[%clk 0:00:12]}  Kb6 {[%clk 0:00:36]} 47. Qc8 {[%clk 0:00:09]}  Qe7 {[%clk 0:00:22]} 48. Qg4 {[%clk 0:00:05]}  Qe4 {[%clk 0:00:20]} 49. Qd1 {[%clk 0:00:05]}  Kc7 {[%clk 0:00:18]} 50. Qb3 {[%clk 0:00:04]}  Qe7 {[%clk 0:00:18]} 51. Ra7 {[%clk 0:00:04]}  Kb8 {[%clk 0:00:18]} 52. Rxa6 {[%clk 0:00:03]}  Qc7 {[%clk 0:00:18]} 53. Ra4 {[%clk 0:00:03]}  g5 {[%clk 0:00:18]} 54. Qd1 {[%clk 0:00:02]}  b5 {[%clk 0:00:18]} 0-1


[Site "https://www.chess.com"]

[Event "Titled Tuesday Blitz August 17 2021"]
[White "Loy, Konstantin"]
[Black "Svane, Rasmus"]
[WhiteFideId "14122499"]
[BlackFideId "4657101"]
[WhiteElo "2084"]
[BlackElo "2669"]
[Result "0-1"]
[Round "01"]
[TimeControl "180+1"]
[Date "2021.08.17"]
[WhiteClock "0:00:01"]
[BlackClock "0:01:13"]

1. e4 {[%clk 0:02:56]}  c6 {[%clk 0:02:59]} 2. d4 {[%clk 0:02:56]}  d5 {[%clk 0:03:00]} 3. exd5 {[%clk 0:02:56]}  cxd5 {[%clk 0:03:01]} 4. c4 {[%clk 0:02:57]}  Nf6 {[%clk 0:03:00]} 5. Nc3 {[%clk 0:02:57]}  Nc6 {[%clk 0:02:59]} 6. Bg5 {[%clk 0:02:57]}  dxc4 {[%clk 0:02:58]} 7. Bxc4 {[%clk 0:02:56]}  e6 {[%clk 0:02:58]} 8. Nf3 {[%clk 0:02:56]}  Be7 {[%clk 0:02:57]} 9. O-O {[%clk 0:02:56]}  O-O {[%clk 0:02:56]} 10. a3 {[%clk 0:02:53]}  h6 {[%clk 0:02:54]} 11. Bh4 {[%clk 0:02:52]}  Nh5 {[%clk 0:02:53]} 12. Bxe7 {[%clk 0:02:39]}  Nxe7 {[%clk 0:02:54]} 13. d5 {[%clk 0:02:39]}  exd5 {[%clk 0:02:46]} 14. Nxd5 {[%clk 0:02:38]}  Nxd5 {[%clk 0:02:47]} 15. Qxd5 {[%clk 0:02:37]}  Qxd5 {[%clk 0:02:44]} 16. Bxd5 {[%clk 0:02:38]}  Nf4 {[%clk 0:02:24]} 17. Bc4 {[%clk 0:02:21]}  Bf5 {[%clk 0:02:23]} 18. g3 {[%clk 0:01:27]}  Rac8 {[%clk 0:02:20]} 19. Rac1 {[%clk 0:01:15]}  Be6 {[%clk 0:02:14]} 20. gxf4 {[%clk 0:00:52]}  Bxc4 {[%clk 0:02:12]} 21. Rfe1 {[%clk 0:00:53]}  Rfd8 {[%clk 0:02:06]} 22. Ne5 {[%clk 0:00:51]}  Be6 {[%clk 0:02:05]} 23. Rxc8 {[%clk 0:00:31]}  Rxc8 {[%clk 0:02:06]} 24. Re2 {[%clk 0:00:28]}  f6 {[%clk 0:01:59]} 25. Nd3 {[%clk 0:00:22]}  Bd5 {[%clk 0:01:54]} 26. h4 {[%clk 0:00:20]}  Kf7 {[%clk 0:01:52]} 27. b4 {[%clk 0:00:16]}  Rc3 {[%clk 0:01:49]} 28. Nc5 {[%clk 0:00:15]}  Rxa3 {[%clk 0:01:34]} 29. Rd2 {[%clk 0:00:13]}  Bc6 {[%clk 0:01:34]} 30. Rd4 {[%clk 0:00:08]}  Ra1+ {[%clk 0:01:30]} 31. Kh2 {[%clk 0:00:07]}  Rh1+ {[%clk 0:01:31]} 32. Kg3 {[%clk 0:00:08]}  Rg1+ {[%clk 0:01:31]} 33. Kh3 {[%clk 0:00:07]}  Kg6 {[%clk 0:01:24]} 34. Ne6 {[%clk 0:00:02]}  Kf5 {[%clk 0:01:15]} 35. Nd8 {[%clk 0:00:01]}  Bf3 {[%clk 0:01:13]} 0-1


[Site "https://www.chess.com"]

[Event "Titled Tuesday Blitz August 17 2021"]
[White "Majer, Damir"]
[Black "Bryakin, Mikhail"]
[WhiteFideId "4615689"]
[BlackFideId "4165314"]
[WhiteElo "2384"]
[BlackElo "2336"]
[Result "1-0"]
[Round "01"]
[TimeControl "180+1"]
[Date "2021.08.17"]
[WhiteClock "0:00:45"]
[BlackClock "0:00:53"]

1. d4 {[%clk 0:02:59]}  Nf6 {[%clk 0:02:59]} 2. Nf3 {[%clk 0:02:57]}  g6 {[%clk 0:02:34]} 3. Bf4 {[%clk 0:02:54]}  Bg7 {[%clk 0:02:33]} 4. e3 {[%clk 0:02:55]}  O-O {[%clk 0:02:32]} 5. h3 {[%clk 0:02:55]}  d5 {[%clk 0:02:30]} 6. c3 {[%clk 0:02:53]}  c5 {[%clk 0:02:29]} 7. Be2 {[%clk 0:02:53]}  Nbd7 {[%clk 0:02:27]} 8. O-O {[%clk 0:02:52]}  b6 {[%clk 0:02:26]} 9. Nbd2 {[%clk 0:02:51]}  Bb7 {[%clk 0:02:25]} 10. a4 {[%clk 0:02:51]}  a6 {[%clk 0:02:24]} 11. Qb1 {[%clk 0:02:48]}  Ra7 {[%clk 0:02:22]} 12. Rc1 {[%clk 0:02:47]}  Qa8 {[%clk 0:02:21]} 13. Bf1 {[%clk 0:02:46]}  Ne4 {[%clk 0:02:18]} 14. Nxe4 {[%clk 0:02:41]}  dxe4 {[%clk 0:02:18]} 15. Nd2 {[%clk 0:02:41]}  e5 {[%clk 0:02:16]} 16. dxe5 {[%clk 0:02:33]}  Nxe5 {[%clk 0:02:17]} 17. Nc4 {[%clk 0:02:10]}  Nxc4 {[%clk 0:02:09]} 18. Bxc4 {[%clk 0:02:08]}  Kh8 {[%clk 0:02:07]} 19. Qa2 {[%clk 0:02:03]}  f5 {[%clk 0:02:06]} 20. Rd1 {[%clk 0:02:01]}  Qe8 {[%clk 0:02:01]} 21. Bc7 {[%clk 0:01:53]}  Qc6 {[%clk 0:01:58]} 22. Bf4 {[%clk 0:01:44]}  Raa8 {[%clk 0:01:57]} 23. Rd6 {[%clk 0:01:42]}  Qc8 {[%clk 0:01:46]} 24. Rxb6 {[%clk 0:01:42]}  Bc6 {[%clk 0:01:46]} 25. Qa3 {[%clk 0:01:39]}  Be8 {[%clk 0:01:36]} 26. Bd6 {[%clk 0:01:36]}  Rf6 {[%clk 0:01:27]} 27. Qxc5 {[%clk 0:01:33]}  Qd8 {[%clk 0:01:18]} 28. a5 {[%clk 0:01:25]}  Rc8 {[%clk 0:01:17]} 29. Be7 {[%clk 0:01:00]}  Rxc5 {[%clk 0:01:10]} 30. Bxd8 {[%clk 0:00:59]}  Rxb6 {[%clk 0:01:01]} 31. axb6 {[%clk 0:00:54]}  Rxc4 {[%clk 0:00:57]} 32. b7 {[%clk 0:00:48]}  Be5 {[%clk 0:00:57]} 33. Bf6+ {[%clk 0:00:46]}  Kg8 {[%clk 0:00:53]} 34. Bxe5 {[%clk 0:00:45]} 1-0


[Site "https://www.chess.com"]

[Event "Titled Tuesday Blitz August 17 2021"]
[White "Matthiesen, Martin"]
[Black "Lintchevski, Daniil"]
[WhiteFideId "1404067"]
[BlackFideId "4171055"]
[WhiteElo "2337"]
[BlackElo "2494"]
[Result "0-1"]
[Round "01"]
[TimeControl "180+1"]
[Date "2021.08.17"]
[WhiteClock "0:00:20"]
[BlackClock "0:00:49"]

1. d4 {[%clk 0:03:00]}  d5 {[%clk 0:03:00]} 2. c4 {[%clk 0:03:00]}  c6 {[%clk 0:03:00]} 3. Nc3 {[%clk 0:02:59]}  Nf6 {[%clk 0:03:00]} 4. e3 {[%clk 0:02:59]}  a6 {[%clk 0:03:00]} 5. Nf3 {[%clk 0:02:57]}  b5 {[%clk 0:03:00]} 6. b3 {[%clk 0:02:55]}  Bg4 {[%clk 0:03:00]} 7. a4 {[%clk 0:02:43]}  bxc4 {[%clk 0:02:55]} 8. bxc4 {[%clk 0:02:42]}  e6 {[%clk 0:02:56]} 9. Be2 {[%clk 0:02:37]}  Bb4 {[%clk 0:02:38]} 10. Bd2 {[%clk 0:02:37]}  a5 {[%clk 0:02:38]} 11. O-O {[%clk 0:02:35]}  Nbd7 {[%clk 0:02:35]} 12. Na2 {[%clk 0:02:28]}  Bd6 {[%clk 0:02:28]} 13. cxd5 {[%clk 0:02:21]}  cxd5 {[%clk 0:02:26]} 14. Nc3 {[%clk 0:02:20]}  O-O {[%clk 0:02:11]} 15. Nb5 {[%clk 0:02:19]}  Bb8 {[%clk 0:02:10]} 16. Rc1 {[%clk 0:02:17]}  Ne4 {[%clk 0:02:08]} 17. Be1 {[%clk 0:02:15]}  Nd6 {[%clk 0:01:56]} 18. Nd2 {[%clk 0:02:03]}  Bxe2 {[%clk 0:01:53]} 19. Qxe2 {[%clk 0:02:02]}  Nb6 {[%clk 0:01:53]} 20. Ra1 {[%clk 0:01:52]}  Qd7 {[%clk 0:01:48]} 21. Nb3 {[%clk 0:01:48]}  Nxb5 {[%clk 0:01:46]} 22. axb5 {[%clk 0:01:45]}  Nc4 {[%clk 0:01:30]} 23. Bxa5 {[%clk 0:01:19]}  Qxb5 {[%clk 0:01:30]} 24. Bd2 {[%clk 0:01:18]}  Qxb3 {[%clk 0:01:26]} 25. Rxa8 {[%clk 0:01:17]}  Bxh2+ {[%clk 0:01:26]} 26. Kxh2 {[%clk 0:01:18]}  Rxa8 {[%clk 0:01:26]} 27. Bc1 {[%clk 0:01:09]}  h6 {[%clk 0:01:16]} 28. Qg4 {[%clk 0:01:07]}  Qc2 {[%clk 0:01:11]} 29. Qd1 {[%clk 0:00:52]}  Ra2 {[%clk 0:01:00]} 30. Qxc2 {[%clk 0:00:49]}  Rxc2 {[%clk 0:01:01]} 31. Kg3 {[%clk 0:00:45]}  g5 {[%clk 0:01:01]} 32. Kh2 {[%clk 0:00:43]}  Kh7 {[%clk 0:01:01]} 33. g4 {[%clk 0:00:40]}  Kg6 {[%clk 0:01:01]} 34. Kg3 {[%clk 0:00:39]}  f5 {[%clk 0:01:00]} 35. gxf5+ {[%clk 0:00:36]}  exf5 {[%clk 0:01:01]} 36. Kf3 {[%clk 0:00:34]}  h5 {[%clk 0:00:59]} 37. Kg2 {[%clk 0:00:28]}  h4 {[%clk 0:00:58]} 38. Kh3 {[%clk 0:00:27]}  Kh5 {[%clk 0:00:58]} 39. Kg2 {[%clk 0:00:28]}  g4 {[%clk 0:00:58]} 40. Kh2 {[%clk 0:00:28]}  g3+ {[%clk 0:00:50]} 41. Kg2 {[%clk 0:00:20]}  Kg4 {[%clk 0:00:49]} 0-1


[Site "https://www.chess.com"]

[Event "Titled Tuesday Blitz August 17 2021"]
[White "Matveeva, Olga"]
[Black "Korchmar, Vasiliy"]
[WhiteFideId "24107018"]
[BlackFideId "24131750"]
[WhiteElo "2108"]
[BlackElo "2370"]
[Result "0-1"]
[Round "01"]
[TimeControl "180+1"]
[Date "2021.08.18"]
[WhiteClock "0:00:01"]
[BlackClock "0:01:18"]

1. d4 {[%clk 0:03:00]}  d5 {[%clk 0:02:58]} 2. c4 {[%clk 0:03:01]}  c6 {[%clk 0:02:58]} 3. Nf3 {[%clk 0:03:01]}  Nf6 {[%clk 0:02:58]} 4. e3 {[%clk 0:03:01]}  Bg4 {[%clk 0:02:57]} 5. h3 {[%clk 0:02:59]}  Bh5 {[%clk 0:02:57]} 6. g4 {[%clk 0:02:55]}  Bg6 {[%clk 0:02:54]} 7. Ne5 {[%clk 0:02:55]}  Nbd7 {[%clk 0:02:54]} 8. Nxg6 {[%clk 0:02:49]}  hxg6 {[%clk 0:02:55]} 9. Bg2 {[%clk 0:02:47]}  e6 {[%clk 0:02:55]} 10. Qb3 {[%clk 0:02:39]}  Qb6 {[%clk 0:02:54]} 11. c5 {[%clk 0:02:34]}  Qc7 {[%clk 0:02:51]} 12. f4 {[%clk 0:02:22]}  b6 {[%clk 0:02:50]} 13. cxb6 {[%clk 0:02:18]}  axb6 {[%clk 0:02:50]} 14. Bd2 {[%clk 0:02:15]}  c5 {[%clk 0:02:50]} 15. Nc3 {[%clk 0:02:08]}  c4 {[%clk 0:02:48]} 16. Qc2 {[%clk 0:02:04]}  Bb4 {[%clk 0:02:28]} 17. O-O {[%clk 0:01:57]}  Bxc3 {[%clk 0:02:28]} 18. Bxc3 {[%clk 0:01:43]}  O-O {[%clk 0:02:29]} 19. Bb4 {[%clk 0:01:24]}  Rfc8 {[%clk 0:02:28]} 20. a3 {[%clk 0:01:22]}  Nb8 {[%clk 0:02:15]} 21. Bf3 {[%clk 0:01:16]}  Nc6 {[%clk 0:02:16]} 22. Bc3 {[%clk 0:01:11]}  b5 {[%clk 0:02:16]} 23. h4 {[%clk 0:01:03]}  Qb6 {[%clk 0:02:15]} 24. h5 {[%clk 0:00:58]}  gxh5 {[%clk 0:02:06]} 25. gxh5 {[%clk 0:00:53]}  b4 {[%clk 0:02:06]} 26. axb4 {[%clk 0:00:52]}  Nxb4 {[%clk 0:02:07]} 27. Qg2 {[%clk 0:00:48]}  Nd3 {[%clk 0:01:52]} 28. Kh1 {[%clk 0:00:45]}  Qd8 {[%clk 0:01:41]} 29. Rg1 {[%clk 0:00:43]}  Qf8 {[%clk 0:01:39]} 30. Qg5 {[%clk 0:00:31]}  Rxa1 {[%clk 0:01:30]} 31. Rxa1 {[%clk 0:00:30]}  Ne4 {[%clk 0:01:28]} 32. Bxe4 {[%clk 0:00:27]}  Nf2+ {[%clk 0:01:28]} 33. Kh2 {[%clk 0:00:23]}  Nxe4 {[%clk 0:01:29]} 34. Qg4 {[%clk 0:00:17]}  Qe7 {[%clk 0:01:29]} 35. Rg1 {[%clk 0:00:16]}  Qf6 {[%clk 0:01:29]} 36. Bb4 {[%clk 0:00:14]}  Rb8 {[%clk 0:01:28]} 37. Be7 {[%clk 0:00:13]}  Rxb2+ {[%clk 0:01:23]} 38. Rg2 {[%clk 0:00:01]}  Rxg2+ {[%clk 0:01:18]} 0-1


[Site "https://www.chess.com"]

[Event "Titled Tuesday Blitz August 17 2021"]
[White "Mekhitarian, Krikor Sevag"]
[Black "Shafigullina, Zarina"]
[WhiteFideId "2107660"]
[BlackFideId "24174220"]
[WhiteElo "2598"]
[BlackElo "2087"]
[Result "1-0"]
[Round "01"]
[TimeControl "180+1"]
[Date "2021.08.17"]
[WhiteClock "0:00:06"]
[BlackClock "0:00:01"]

1. e4 {[%clk 0:02:58]}  c5 {[%clk 0:02:59]} 2. Nf3 {[%clk 0:02:58]}  d6 {[%clk 0:02:59]} 3. c3 {[%clk 0:02:54]}  Nf6 {[%clk 0:02:44]} 4. h3 {[%clk 0:02:54]}  Nc6 {[%clk 0:02:40]} 5. Bd3 {[%clk 0:02:53]}  Ne5 {[%clk 0:02:31]} 6. Bc2 {[%clk 0:02:44]}  g6 {[%clk 0:02:26]} 7. O-O {[%clk 0:02:42]}  c4 {[%clk 0:02:23]} 8. Nxe5 {[%clk 0:02:42]}  dxe5 {[%clk 0:02:23]} 9. Na3 {[%clk 0:02:40]}  Be6 {[%clk 0:02:20]} 10. Ba4+ {[%clk 0:02:39]}  Nd7 {[%clk 0:02:19]} 11. Bb5 {[%clk 0:02:29]}  Rc8 {[%clk 0:02:17]} 12. b3 {[%clk 0:01:47]}  cxb3 {[%clk 0:02:12]} 13. axb3 {[%clk 0:01:48]}  a6 {[%clk 0:02:08]} 14. Bc4 {[%clk 0:01:46]}  Bxc4 {[%clk 0:02:01]} 15. Nxc4 {[%clk 0:01:45]}  Bg7 {[%clk 0:01:58]} 16. Qc2 {[%clk 0:01:32]}  O-O {[%clk 0:01:54]} 17. Ba3 {[%clk 0:01:31]}  b5 {[%clk 0:01:44]} 18. Ne3 {[%clk 0:01:26]}  a5 {[%clk 0:01:43]} 19. Rfd1 {[%clk 0:01:13]}  b4 {[%clk 0:01:37]} 20. Bb2 {[%clk 0:01:07]}  Nc5 {[%clk 0:01:36]} 21. d3 {[%clk 0:01:01]}  Ne6 {[%clk 0:01:28]} 22. c4 {[%clk 0:00:59]}  f5 {[%clk 0:01:20]} 23. exf5 {[%clk 0:00:54]}  gxf5 {[%clk 0:01:19]} 24. Qd2 {[%clk 0:00:48]}  f4 {[%clk 0:01:15]} 25. Nd5 {[%clk 0:00:48]}  Nc5 {[%clk 0:01:02]} 26. Qc2 {[%clk 0:00:13]}  e6 {[%clk 0:01:01]} 27. d4 {[%clk 0:00:12]}  exd4 {[%clk 0:00:55]} 28. Bxd4 {[%clk 0:00:13]}  Bxd4 {[%clk 0:00:41]} 29. Rxd4 {[%clk 0:00:14]}  exd5 {[%clk 0:00:40]} 30. Rxd5 {[%clk 0:00:14]}  Qf6 {[%clk 0:00:39]} 31. Rxa5 {[%clk 0:00:13]}  Ne6 {[%clk 0:00:32]} 32. Qd2 {[%clk 0:00:12]}  f3 {[%clk 0:00:26]} 33. g3 {[%clk 0:00:08]}  Rcd8 {[%clk 0:00:18]} 34. Kh2 {[%clk 0:00:08]}  Rxd5 {[%clk 0:00:16]} 35. Rxd5 {[%clk 0:00:09]}  Rd8 {[%clk 0:00:15]} 36. Rxd8+ {[%clk 0:00:05]}  Qxd8 {[%clk 0:00:14]} 37. Qxb4 {[%clk 0:00:04]}  Qd4 {[%clk 0:00:12]} 38. Qe1 {[%clk 0:00:05]}  Nc5 {[%clk 0:00:10]} 39. Qe8+ {[%clk 0:00:03]}  Kg7 {[%clk 0:00:10]} 40. Qe7+ {[%clk 0:00:04]}  Kg6 {[%clk 0:00:10]} 41. Qe8+ {[%clk 0:00:04]}  Kg7 {[%clk 0:00:08]} 42. Qe7+ {[%clk 0:00:04]}  Kh6 {[%clk 0:00:07]} 43. Qf8+ {[%clk 0:00:03]}  Kg6 {[%clk 0:00:06]} 44. Qxf3 {[%clk 0:00:04]}  Qe4 {[%clk 0:00:04]} 45. Qxe4+ {[%clk 0:00:02]}  Nxe4 {[%clk 0:00:04]} 46. Kg2 {[%clk 0:00:02]}  Nd2 {[%clk 0:00:03]} 47. b4 {[%clk 0:00:03]}  Nxc4 {[%clk 0:00:03]} 48. b5 {[%clk 0:00:04]}  Kf5 {[%clk 0:00:02]} 49. Kf3 {[%clk 0:00:03]}  Ke5 {[%clk 0:00:02]} 50. Kg4 {[%clk 0:00:03]}  Kd5 {[%clk 0:00:02]} 51. f4 {[%clk 0:00:04]}  Kc5 {[%clk 0:00:02]} 52. Kg5 {[%clk 0:00:04]}  Kxb5 {[%clk 0:00:02]} 53. Kh6 {[%clk 0:00:05]}  Nd2 {[%clk 0:00:02]} 54. Kh5 {[%clk 0:00:05]}  Kc5 {[%clk 0:00:01]} 55. Kh6 {[%clk 0:00:05]}  Kd5 {[%clk 0:00:01]} 56. Kxh7 {[%clk 0:00:05]}  Nf1 {[%clk 0:00:01]} 57. g4 {[%clk 0:00:05]}  Ke4 {[%clk 0:00:01]} 58. f5 {[%clk 0:00:05]}  Ne3 {[%clk 0:00:01]} 59. Kg6 {[%clk 0:00:06]} 1-0


[Site "https://www.chess.com"]

[Event "Titled Tuesday Blitz August 17 2021"]
[White "Mirzoev, Azer"]
[Black "Kalghatgi, Nikhil"]
[WhiteFideId "13400304"]
[BlackFideId "2056496"]
[WhiteElo "2525"]
[BlackElo "1994"]
[Result "1-0"]
[Round "01"]
[TimeControl "180+1"]
[Date "2021.08.17"]
[WhiteClock "0:01:21"]
[BlackClock "0:00:24"]

1. d4 {[%clk 0:03:00]}  Nf6 {[%clk 0:02:59]} 2. Bf4 {[%clk 0:02:58]}  g6 {[%clk 0:02:58]} 3. e3 {[%clk 0:02:55]}  Bg7 {[%clk 0:02:58]} 4. Nf3 {[%clk 0:02:54]}  O-O {[%clk 0:02:57]} 5. h3 {[%clk 0:02:54]}  d6 {[%clk 0:02:57]} 6. Bh2 {[%clk 0:02:51]}  Nfd7 {[%clk 0:02:48]} 7. Be2 {[%clk 0:02:50]}  e5 {[%clk 0:02:47]} 8. O-O {[%clk 0:02:50]}  Nc6 {[%clk 0:02:47]} 9. c4 {[%clk 0:02:46]}  f5 {[%clk 0:02:46]} 10. Nc3 {[%clk 0:02:45]}  h6 {[%clk 0:02:35]} 11. Rc1 {[%clk 0:02:30]}  g5 {[%clk 0:02:30]} 12. dxe5 {[%clk 0:02:30]}  Ndxe5 {[%clk 0:02:28]} 13. Nd4 {[%clk 0:02:28]}  f4 {[%clk 0:02:17]} 14. exf4 {[%clk 0:02:23]}  gxf4 {[%clk 0:01:57]} 15. Nf3 {[%clk 0:02:23]}  Be6 {[%clk 0:01:45]} 16. b3 {[%clk 0:02:17]}  Nxf3+ {[%clk 0:01:14]} 17. Bxf3 {[%clk 0:02:14]}  Ne5 {[%clk 0:01:14]} 18. Bxb7 {[%clk 0:02:10]}  f3 {[%clk 0:01:11]} 19. Bxe5 {[%clk 0:02:06]}  fxg2 {[%clk 0:01:09]} 20. Bxg7 {[%clk 0:02:00]}  gxf1=Q+ {[%clk 0:00:56]} 21. Qxf1 {[%clk 0:02:01]}  Kxg7 {[%clk 0:00:46]} 22. Bxa8 {[%clk 0:01:59]}  Qxa8 {[%clk 0:00:44]} 23. Qg2+ {[%clk 0:01:57]}  Qxg2+ {[%clk 0:00:45]} 24. Kxg2 {[%clk 0:01:57]}  Kf6 {[%clk 0:00:45]} 25. Ne4+ {[%clk 0:01:48]}  Ke5 {[%clk 0:00:46]} 26. Re1 {[%clk 0:01:47]}  Kd4 {[%clk 0:00:37]} 27. Nxd6 {[%clk 0:01:41]}  Bxh3+ {[%clk 0:00:36]} 28. Kxh3 {[%clk 0:01:40]}  cxd6 {[%clk 0:00:36]} 29. Rd1+ {[%clk 0:01:39]}  Kc5 {[%clk 0:00:33]} 30. Kg3 {[%clk 0:01:38]}  h5 {[%clk 0:00:32]} 31. Rd5+ {[%clk 0:01:36]}  Kb4 {[%clk 0:00:33]} 32. Rxh5 {[%clk 0:01:36]}  Rg8+ {[%clk 0:00:26]} 33. Kf3 {[%clk 0:01:34]}  Rf8+ {[%clk 0:00:27]} 34. Ke3 {[%clk 0:01:34]}  Re8+ {[%clk 0:00:27]} 35. Kd4 {[%clk 0:01:27]}  Rf8 {[%clk 0:00:24]} 36. Rb5+ {[%clk 0:01:25]}  Ka3 {[%clk 0:00:24]} 37. Ra5+ {[%clk 0:01:24]}  Kb4 {[%clk 0:00:24]} 38. Ra4# {[%clk 0:01:21]} 1-0


[Site "https://www.chess.com"]